fUST/lending_fUST_20250423
["ID","MTS","AMOUNT","RATE_DAILY","PERIOD"]
[358740229,1745406693316,-172.663,0.00026621,14]
[358740230,1745406693326,-634.0,0.000267,2]
[358740231,1745406693336,-3583.84413045,0.00026797,6]
[358740232,1745406693346,-155.0,0.00026946,3]
[358740233,1745406693355,-282.46305324,0.00026946,3]
[358740234,1745406693365,-248.51570693,0.00026946,3]
[358740235,1745406693375,-159.63473314,0.00026946,3]
[358740236,1745406693384,-3000.0,0.00027146,7]
[358740237,1745406693394,-500.0,0.000272,10]
[358740238,1745406693404,-500.0,0.000272,10]
[358740239,1745406693414,-500.0,0.000272,10]
[358740240,1745406693428,-500.0,0.000272,10]
[358740241,1745406693438,-500.0,0.000272,10]
[358740242,1745406693448,-500.0,0.000272,10]
[358740243,1745406693459,-500.0,0.000272,10]
[358740244,1745406693470,-500.0,0.000272,10]
[358740245,1745406693480,-508.85861391,0.000272,10]
[358740246,1745406693490,-500.0,0.000272,10]
[358740247,1745406693500,-197.40204187,0.000272,10]
[358740248,1745406693511,-500.0,0.000272,10]
[358740249,1745406693521,-500.0,0.000272,10]
[358740250,1745406693532,-500.0,0.000272,10]
[358740251,1745406693542,-500.0,0.000272,10]
[358740252,1745406693553,-500.0,0.000272,10]
[358740253,1745406693566,-500.0,0.000272,10]
[358740254,1745406693581,-428.32927257,0.000272,10]
[358740255,1745406693592,-500.0,0.000272,10]
[358740256,1745406693604,-500.0,0.000272,10]
[358740257,1745406693613,-500.0,0.000272,10]
[358740258,1745406693624,-500.0,0.000272,10]
[358740259,1745406693634,-500.0,0.000272,10]
[358740260,1745406693643,-500.0,0.000272,10]
[358740261,1745406693653,-500.0,0.000272,10]
[358740262,1745406693663,-500.0,0.000272,10]
[358740263,1745406693673,-500.0,0.000272,10]
[358740264,1745406693682,-500.0,0.000272,10]
[358740265,1745406693691,-500.0,0.000272,10]
[358740266,1745406693700,-500.0,0.000272,10]
[358740267,1745406693710,-500.0,0.000272,10]
[358740268,1745406693720,-500.0,0.000272,10]
[358740269,1745406693730,-500.0,0.000272,10]
[358740270,1745406693739,-500.0,0.000272,10]
[358740271,1745406693748,-500.0,0.000272,10]
[358740272,1745406693756,-500.0,0.000272,10]
[358740273,1745406693766,-500.0,0.000272,10]
[358740274,1745406693775,-500.0,0.000272,10]
[358740275,1745406693785,-500.0,0.000272,10]
[358740276,1745406693794,-500.0,0.000272,10]
[358740277,1745406693803,-500.0,0.000272,10]
[358740278,1745406693810,-500.0,0.000272,10]
[358740279,1745406693819,-231.72170325,0.00027397,2]
[358740280,1745406693825,-500.0,0.00027397,2]
[358740281,1745406693833,-159.238845,0.00027399,3]
[358740282,1745406693839,-2000.0,0.00027406,4]
[358740283,1745406693849,-3583.84413045,0.00027486,7]
[358740284,1745406693857,-500.0,0.00027671,2]
[358740285,1745406693866,-151.0,0.00027683,2]
[358740286,1745406693876,-500.0,0.00027945,2]
[358740287,1745406693883,-151.0,0.00027945,5]
[358740288,1745406693889,-3000.0,0.00027968,7]
[358740289,1745406693897,-1152.0,0.0002799,2]
[358740290,1745406693904,-160.0,0.00028,10]
[358740291,1745406693910,-160.0,0.00028,10]
[358740292,1745406693918,-839.95942076,0.00028,10]
[358740293,1745406693925,-420.82143104,0.00028,10]
[358740294,1745406693933,-160.0,0.00028,10]
[358740295,1745406693941,-12573.79847128,0.00028,10]
[358740296,1745406693947,-160.0,0.00028,10]
[358740297,1745406693954,-161.07,0.00028034,7]
[358740298,1745406693960,-313.93,0.00028034,7]
[358740299,1745406693967,-3583.84413045,0.00028176,7]
[358740300,1745406693975,-1800.0,0.00028192,5]
[358740301,1745406693983,-500.0,0.00028219,2]
[358740302,1745406693991,-2000.0,0.00028271,4]
[358740303,1745406693999,-500.0,0.00028493,2]
[358740304,1745406694006,-155.54642428,0.00028493,5]
[358740305,1745406694015,-616.933,0.00028618,15]
[358740306,1745406694021,-706.0,0.00028661,2]
[358740307,1745406694029,-544.0,0.00028661,2]
[358740308,1745406694039,-500.0,0.00028767,2]
[358740309,1745406694046,-3000.0,0.0002879,7]
[358740310,1745406694055,-3583.84413045,0.00028866,8]
[358740311,1745406694062,-839.95942076,0.00029,7]
[358740312,1745406694069,-420.82143104,0.00029,7]
[358740313,1745406694076,-500.0,0.00029041,2]
[358740314,1745406694084,-151.0,0.00029052,2]
[358740315,1745406694093,-2000.0,0.00029135,4]
[358740316,1745406694100,-190.41212809,0.00029315,2]
[358740317,1745406694107,-3583.84413045,0.00029555,8]
[358740318,1745406694114,-3000.0,0.00029612,7]
[358740319,1745406694122,-600.0,0.00029836,5]
[358740320,1745406694130,-177.8391528,0.00029993,2]
[358740321,1745406694137,-351.69,0.0003,2]
[358740322,1745406694146,-1000.0,0.0003,30]
[358740323,1745406694154,-234.0,0.0003,2]
[358740324,1745406694162,-3583.84413045,0.00030245,9]
[358740325,1745406694174,-683.24440949,0.00030352,5]
[358740326,1745406694182,-1000.0,0.00030352,5]
[358740327,1745406694189,-151.0,0.00030421,2]
[358740328,1745406694198,-3000.0,0.00030434,7]
[358740329,1745406694207,-1613.0,0.00030481,2]
[358740330,1745406694217,-3583.84413045,0.00030934,9]
[358740331,1745406694226,-160.0,0.00031,7]
[358740332,1745406694234,-160.0,0.00031,7]
[358740333,1745406694242,-2912.4485447,0.00031254,4]
[358740334,1745406694249,-3000.0,0.00031256,7]
[358740335,1745406694258,-50000.0,0.00031609,30]
[358740336,1745406694267,-151.0,0.00031609,7]
[358740337,1745406694276,-281.114084,0.00031609,7]
[358740338,1745406694284,-281.114084,0.00031609,7]
[358740339,1745406694291,-3583.84413045,0.00031624,10]
[358740340,1745406694299,-706.0,0.00031661,2]
[358740341,1745406694305,-544.0,0.00031661,2]
[358740342,1745406694313,-2000.0,0.000317,6]
[358740343,1745406694322,-151.0,0.0003179,2]
[358740344,1745406694329,-373.75,0.000319,120]
[358740345,1745406694337,-1000.0,0.00032,30]
[358740346,1745406694348,-160.0,0.00032,30]
[358740347,1745406694355,-160.0,0.00032,30]
[358740348,1745406694362,-839.95942076,0.00032,30]
[358740349,1745406694370,-420.82143104,0.00032,30]
[358740350,1745406694378,-160.0,0.00032,30]
[358740351,1745406694387,-3000.0,0.00032078,7]
[358740352,1745406694394,-151.0,0.00032078,7]
[358740353,1745406694402,-420.748568,0.00032078,7]
[358740354,1745406694409,-420.748568,0.00032078,7]
[358740355,1745406694417,-500.0,0.00032128,45]
[358740356,1745406694426,-3583.84413045,0.00032314,10]
[358740357,1745406694437,-2000.0,0.000325,10]
[358740358,1745406694577,-2000.0,0.000325,10]
[358740359,1745406694587,-2000.0,0.000325,10]
[358740360,1745406694598,-2000.0,0.000325,10]
[358740361,1745406694607,-2000.0,0.000325,10]
[358740362,1745406694617,-2000.0,0.000325,10]
[358740363,1745406694628,-2000.0,0.000325,10]
[358740364,1745406694639,-2000.0,0.000325,15]
[358740365,1745406694648,-1249.0,0.000325,10]
[358740366,1745406694658,-151.0,0.000325,7]
[358740367,1745406694667,-688.263941,0.000325,7]
[358740368,1745406694677,-688.263941,0.000325,7]
[358740369,1745406694686,-151.0,0.000325,7]
[358740370,1745406694695,-151.0,0.000325,7]
[358740371,1745406694706,-2000.0,0.000327,8]
[358740372,1745406694716,-300.0,0.00032876,30]
[358740373,1745406694725,-500.0,0.00032876,120]
[358740374,1745406694735,-500.0,0.00032876,120]
[358740375,1745406694744,-249.62278658,0.00032876,2]
[358740376,1745406694753,-199.46563029,0.00032876,2]
[358740377,1745406694763,-500.0,0.00032876,2]
[358740378,1745406694772,-500.0,0.00032876,2]
[358740379,1745406694782,-500.0,0.00032876,2]
[358740380,1745406694791,-611.59714637,0.00032876,2]
[358740381,1745406694800,-500.0,0.00032876,2]
[358740382,1745406694810,-500.0,0.00032876,2]
[358740383,1745406694819,-500.0,0.00032876,2]
[358740384,1745406694829,-500.0,0.00032876,2]
[358740385,1745406694840,-500.0,0.00032876,2]
[358740386,1745406694851,-500.0,0.00032876,2]
[358740387,1745406694860,-500.0,0.00032876,2]
[358740388,1745406694869,-202.2875463,0.00032876,2]
[358740389,1745406694879,-431.75009915,0.00032876,2]
[358740390,1745406694890,-220.0384503,0.00032876,2]
[358740391,1745406694902,-311.64213957,0.00032876,2]
[358740392,1745406694913,-284.39963858,0.00032876,2]
[358740393,1745406694923,-500.0,0.00032877,2]
[358740394,1745406694934,-500.0,0.00032877,2]
[358740395,1745406694945,-500.0,0.00032877,5]
[358740396,1745406694956,-3000.0,0.000329,60]
[358740397,1745406694966,-342143.15252679,0.000329,30]
[358740398,1745406694976,-25518.67,0.000329,30]
[358740399,1745406694985,-954.29,0.000329,7]
[358740400,1745406694994,-200.0,0.000329,13]
[358740401,1745406695003,-210.866567,0.000329,14]
[358740402,1745406695013,-210.866567,0.000329,14]
[358740403,1745406695022,-151.0,0.000329,14]
[358740404,1745406695031,-151.0,0.000329,14]
[358740405,1745406695041,-151.0,0.000329,14]
[358740406,1745406695051,-151.0,0.000329,14]
[358740407,1745406695060,-151.0,0.000329,14]
[358740408,1745406695069,-151.0,0.000329,14]
[358740409,1745406695078,-2000.0,0.000329,9]
[358740410,1745406695088,-2000.0,0.000329,9]
[358740411,1745406695098,-698.850058,0.000329,2]
[358740412,1745406695107,-154.044068,0.000329,2]
[358740413,1745406695116,-297.065692,0.000329,14]
[358740414,1745406695126,-297.065692,0.000329,14]
[358740415,1745406695135,-173.835846,0.000329,14]
[358740416,1745406695144,-173.835846,0.000329,14]
[358740417,1745406695153,-151.0,0.000329,14]
[358740418,1745406695162,-531.926219,0.000329,14]
[358740419,1745406695175,-531.926219,0.000329,14]
[358740420,1745406695185,-488.670176,0.000329,14]
[358740421,1745406695194,-488.670176,0.000329,14]
[358740422,1745406695204,-151.0,0.000329,14]
[358740423,1745406695214,-151.0,0.000329,14]
[358740424,1745406695223,-1021.287987,0.000329,14]
[358740425,1745406695233,-1021.287987,0.000329,14]
[358740426,1745406695242,-195.742775,0.000329,14]
[358740427,1745406695251,-195.742775,0.000329,14]
[358740428,1745406695262,-1172.84019,0.000329,14]
[358740429,1745406695271,-151.0,0.000329,14]
[358740430,1745406695279,-1172.84019,0.000329,14]
[358740431,1745406695288,-151.0,0.000329,14]
[358740432,1745406695297,-504.763637,0.000329,14]
[358740433,1745406695307,-595.565192,0.000329,14]
[358740434,1745406695316,-504.763637,0.000329,14]
[358740435,1745406695324,-595.565192,0.000329,14]
[358740436,1745406695334,-155.2608,0.000329,14]
[358740437,1745406695344,-4256.12149,0.000329,14]
[358740438,1745406695353,-4256.12149,0.000329,14]
[358740439,1745406695363,-694.183642,0.000329,14]
[358740440,1745406695372,-151.0,0.000329,14]
[358740441,1745406695382,-694.183642,0.000329,14]
[358740442,1745406695392,-151.0,0.000329,14]
[358740443,1745406695402,-522.6319,0.000329,14]
[358740444,1745406695412,-522.6319,0.000329,14]
[358740445,1745406695422,-151.0,0.000329,14]
[358740446,1745406695431,-151.0,0.000329,14]
[358740447,1745406695441,-151.0,0.000329,14]
[358740448,1745406695451,-221.565975,0.000329,14]
[358740449,1745406695461,-151.0,0.000329,14]
[358740450,1745406695471,-221.565975,0.000329,14]
[358740451,1745406695481,-151.0,0.000329,14]
[358740452,1745406695491,-151.0,0.000329,14]
[358740453,1745406695501,-156.664698,0.000329,14]
[358740454,1745406695512,-311.949792,0.000329,14]
[358740455,1745406695521,-351.918756,0.000329,2]
[358740456,1745406695530,-311.949792,0.000329,14]
[358740457,1745406695540,-351.918756,0.000329,2]
[358740458,1745406695550,-160.0,0.0003293,7]
[358740459,1745406695560,-1000.0,0.00033,2]
[358740460,1745406695571,-2000.0,0.00033,2]
[358740461,1745406695580,-4000.0,0.00033,2]
[358740462,1745406695590,-1650.67,0.00033,120]
[358740463,1745406695600,-26915.07105387,0.00033,2]
[358740464,1745406695610,-160.0,0.00033,30]
[358740465,1745406695619,-160.0,0.00033,30]
[358740466,1745406695628,-839.95942076,0.00033,30]
[358740467,1745406695637,-234.0,0.00033,2]
[358740468,1745406695646,-234.0,0.00033,2]
[358740469,1745406695656,-3583.84413045,0.00033003,11]
[358740470,1745406695665,-151.0,0.00033159,2]
[358740471,1745406695675,-2258.0,0.00033194,2]
[358740472,1745406695684,-200.0,0.000332,120]
[358740473,1745406695693,-229.9092,0.000332,120]
[358740474,1745406695702,-153.0,0.00033381,30]
[358740475,1745406695711,-6599.38082963,0.000334,30]
[358740476,1745406695720,-1000.0,0.00033425,5]
[358740477,1745406695730,-3000.0,0.000335,2]
[358740478,1745406695739,-3583.84413045,0.00033693,11]
[358740479,1745406695748,-936.2,0.000337,11]
[358740480,1745406695758,-498992.14,0.000337,30]
[358740481,1745406695767,-151.0,0.000337,14]
[358740482,1745406695777,-332.131298,0.000337,14]
[358740483,1745406695787,-332.131298,0.000337,14]
[358740484,1745406695796,-151.0,0.000337,14]
[358740485,1745406695806,-151.0,0.000337,14]
[358740486,1745406695817,-151.0,0.000337,14]
[358740487,1745406695827,-151.0,0.000337,14]
[358740488,1745406695836,-245.160944,0.000337,14]
[358740489,1745406695846,-151.0,0.000337,14]
[358740490,1745406695856,-151.0,0.000337,14]
[358740491,1745406695865,-210.866567,0.000337,14]
[358740492,1745406695875,-210.866567,0.000337,14]
[358740493,1745406695885,-151.0,0.000337,14]
[358740494,1745406695895,-151.0,0.000337,14]
[358740495,1745406695904,-151.0,0.000337,14]
[358740496,1745406695913,-151.0,0.000337,14]
[358740497,1745406695923,-151.0,0.000337,14]
[358740498,1745406695932,-698.850058,0.000337,2]
[358740499,1745406695942,-698.850058,0.000337,2]
[358740500,1745406695951,-297.065692,0.000337,14]
[358740501,1745406695961,-297.065692,0.000337,14]
[358740502,1745406695970,-173.835846,0.000337,14]
[358740503,1745406695980,-173.835846,0.000337,14]
[358740504,1745406695989,-151.0,0.000337,14]
[358740505,1745406695999,-531.926219,0.000337,14]
[358740506,1745406696009,-531.926219,0.000337,14]
[358740507,1745406696018,-488.670176,0.000337,14]
[358740508,1745406696027,-488.670176,0.000337,14]
[358740509,1745406696037,-151.0,0.000337,14]
[358740510,1745406696046,-151.0,0.000337,14]
[358740511,1745406696055,-1021.287987,0.000337,14]
[358740512,1745406696064,-1021.287987,0.000337,14]
[358740513,1745406696073,-151.0,0.000337,14]
[358740514,1745406696083,-688.263941,0.000337,14]
[358740515,1745406696092,-688.263941,0.000337,14]
[358740516,1745406696104,-151.0,0.000337,14]
[358740517,1745406696113,-420.748568,0.000337,14]
[358740518,1745406696123,-420.748568,0.000337,14]
[358740519,1745406696132,-195.742775,0.000337,14]
[358740520,1745406696141,-195.742775,0.000337,14]
[358740521,1745406696150,-1172.84019,0.000337,14]
[358740522,1745406696159,-151.0,0.000337,14]
[358740523,1745406696169,-151.0,0.000337,14]
[358740524,1745406696180,-1172.84019,0.000337,14]
[358740525,1745406696190,-151.0,0.000337,14]
[358740526,1745406696199,-151.0,0.000337,14]
[358740527,1745406696208,-504.763637,0.000337,14]
[358740528,1745406696219,-595.565192,0.000337,14]
[358740529,1745406696228,-504.763637,0.000337,14]
[358740530,1745406696237,-595.565192,0.000337,14]
[358740531,1745406696247,-4256.12149,0.000337,14]
[358740532,1745406696257,-4256.12149,0.000337,14]
[358740533,1745406696267,-694.183642,0.000337,14]
[358740534,1745406696276,-151.0,0.000337,14]
[358740535,1745406696286,-694.183642,0.000337,14]
[358740536,1745406696296,-151.0,0.000337,14]
[358740537,1745406696306,-522.6319,0.000337,14]
[358740538,1745406696316,-522.6319,0.000337,14]
[358740539,1745406696326,-151.0,0.000337,14]
[358740540,1745406696336,-151.0,0.000337,14]
[358740541,1745406696347,-151.0,0.000337,14]
[358740542,1745406696358,-151.0,0.000337,14]
[358740543,1745406696369,-221.565975,0.000337,14]
[358740544,1745406696379,-151.0,0.000337,14]
[358740545,1745406696389,-221.565975,0.000337,14]
[358740546,1745406696398,-151.0,0.000337,14]
[358740547,1745406696408,-281.114084,0.000337,14]
[358740548,1745406696417,-281.114084,0.000337,14]
[358740549,1745406696427,-311.949792,0.000337,14]
[358740550,1745406696436,-351.918756,0.000337,2]
[358740551,1745406696447,-311.949792,0.000337,14]
[358740552,1745406696457,-351.918756,0.000337,2]
[358740553,1745406696466,-954.29,0.000338,7]
[358740554,1745406696475,-200.0,0.000339,17]
[358740555,1745406696485,-2000.0,0.000339,11]
[358740556,1745406696494,-2000.0,0.000339,11]
[358740557,1745406696504,-206.98783677,0.0003395,30]
[358740558,1745406696514,-1530.89003661,0.00033973,5]
[358740559,1745406696523,-3000.0,0.00033996,60]
[358740560,1745406696532,-300.0,0.00034,120]
[358740561,1745406696542,-1000.0,0.00034,120]
[358740562,1745406696552,-1000.0,0.00034,2]
[358740563,1745406696561,-2000.0,0.00034,2]
[358740564,1745406696571,-12573.79847128,0.00034,120]
[358740565,1745406696580,-160.0,0.00034,120]
[358740566,1745406696589,-160.0,0.00034,120]
[358740567,1745406696709,-420.82143104,0.00034,120]
[358740568,1745406696733,-312.97391606,0.00034,120]
[358740569,1745406696742,-160.0,0.00034,120]
[358740570,1745406696752,-160.0,0.00034144,8]
[358740571,1745406696763,-25518.67,0.000342,30]
[358740572,1745406696772,-3583.84413045,0.00034383,11]
[358740573,1745406696781,-1837.79894954,0.000345,14]
[358740574,1745406696791,-470.93528529,0.000345,10]
[358740575,1745406696800,-151.0,0.00034528,2]
[358740576,1745406696809,-706.0,0.00034661,2]
[358740577,1745406696818,-544.0,0.00034661,2]
[358740578,1745406696828,-498992.14,0.000347,30]
[358740579,1745406696837,-151.0,0.000347,14]
[358740580,1745406696846,-332.131298,0.000347,14]
[358740581,1745406696855,-332.131298,0.000347,14]
[358740582,1745406696864,-151.0,0.000347,14]
[358740583,1745406696873,-250.0,0.000347,14]
[358740584,1745406696882,-151.0,0.000347,14]
[358740585,1745406696892,-151.0,0.000347,14]
[358740586,1745406696901,-151.0,0.000347,14]
[358740587,1745406696909,-151.0,0.000347,14]
[358740588,1745406696919,-210.866567,0.000347,14]
[358740589,1745406696930,-210.866567,0.000347,14]
[358740590,1745406696939,-151.0,0.000347,14]
[358740591,1745406696949,-151.0,0.000347,14]
[358740592,1745406696959,-227.337427,0.000347,14]
[358740593,1745406696969,-151.0,0.000347,14]
[358740594,1745406696978,-151.0,0.000347,14]
[358740595,1745406696988,-698.850058,0.000347,2]
[358740596,1745406696997,-698.850058,0.000347,2]
[358740597,1745406697007,-297.065692,0.000347,14]
[358740598,1745406697017,-297.065692,0.000347,14]
[358740599,1745406697027,-531.926219,0.000347,14]
[358740600,1745406697036,-531.926219,0.000347,14]
[358740601,1745406697046,-488.670176,0.000347,14]
[358740602,1745406697056,-488.670176,0.000347,14]
[358740603,1745406697066,-1021.287987,0.000347,14]
[358740604,1745406697075,-1021.287987,0.000347,14]
[358740605,1745406697085,-688.263941,0.000347,14]
[358740606,1745406697095,-688.263941,0.000347,14]
[358740607,1745406697105,-1172.84019,0.000347,14]
[358740608,1745406697114,-151.0,0.000347,14]
[358740609,1745406697124,-151.0,0.000347,14]
[358740610,1745406697135,-1172.84019,0.000347,14]
[358740611,1745406697145,-163.901499,0.000347,14]
[358740612,1745406697155,-194.997944,0.000347,14]
[358740613,1745406697168,-504.763637,0.000347,14]
[358740614,1745406697178,-595.565192,0.000347,14]
[358740615,1745406697188,-504.763637,0.000347,14]
[358740616,1745406697199,-595.565192,0.000347,14]
[358740617,1745406697209,-4256.12149,0.000347,14]
[358740618,1745406697219,-4256.12149,0.000347,14]
[358740619,1745406697229,-694.183642,0.000347,14]
[358740620,1745406697241,-151.0,0.000347,14]
[358740621,1745406697252,-694.183642,0.000347,14]
[358740622,1745406697262,-151.0,0.000347,14]
[358740623,1745406697272,-522.6319,0.000347,14]
[358740624,1745406697283,-522.6319,0.000347,14]
[358740625,1745406697293,-151.0,0.000347,14]
[358740626,1745406697303,-151.0,0.000347,14]
[358740627,1745406697312,-151.0,0.000347,14]
[358740628,1745406697322,-151.0,0.000347,14]
[358740629,1745406697333,-221.565975,0.000347,14]
[358740630,1745406697343,-151.0,0.000347,14]
[358740631,1745406697354,-221.565975,0.000347,14]
[358740632,1745406697364,-151.0,0.000347,14]
[358740633,1745406697374,-281.114084,0.000347,14]
[358740634,1745406697384,-281.114084,0.000347,14]
[358740635,1745406697395,-351.918756,0.000347,2]
[358740636,1745406697404,-311.949792,0.000347,14]
[358740637,1745406697414,-311.949792,0.000347,14]
[358740638,1745406697424,-351.918756,0.000347,2]
[358740639,1745406697434,-200.0,0.000349,21]
[358740640,1745406697444,-7663.73,0.000349,7]
[358740641,1745406697453,-936.2,0.000349,14]
[358740642,1745406697463,-936.199999,0.000349,14]
[358740643,1745406697473,-173.835846,0.000349,14]
[358740644,1745406697483,-173.835846,0.000349,14]
[358740645,1745406697492,-151.0,0.000349,14]
[358740646,1745406697502,-151.0,0.000349,14]
[358740647,1745406697511,-162.928061,0.000349,14]
[358740648,1745406697522,-151.0,0.000349,14]
[358740649,1745406697532,-420.748568,0.000349,14]
[358740650,1745406697541,-420.748568,0.000349,14]
[358740651,1745406697551,-195.742775,0.000349,14]
[358740652,1745406697561,-195.742775,0.000349,14]
[358740653,1745406697571,-151.0,0.00034999,14]
[358740654,1745406697580,-203.943534,0.00034999,14]
[358740655,1745406697589,-1021.287987,0.00034999,14]
[358740656,1745406697599,-1021.287987,0.00034999,14]
[358740657,1745406697608,-63.21406,0.00035,120]
[358740658,1745406697617,-1015.74574384,0.00035,2]
[358740659,1745406697627,-200.0,0.00035,120]
[358740660,1745406697636,-200.0,0.00035,120]
[358740661,1745406697645,-200.0,0.00035,120]
[358740662,1745406697655,-202.3965,0.00035,120]
[358740663,1745406697665,-200.0,0.00035,120]
[358740664,1745406697675,-200.0,0.00035,120]
[358740665,1745406697685,-200.0,0.00035,120]
[358740666,1745406697694,-301.63281,0.00035,120]
[358740667,1745406697704,-200.0,0.00035,120]
[358740668,1745406697713,-500.0,0.00035,2]
[358740669,1745406697723,-1000.0,0.00035,2]
[358740670,1745406697732,-1000.0,0.00035,2]
[358740671,1745406697742,-2000.0,0.00035,2]
[358740672,1745406697753,-177671.04494597,0.00035,2]
[358740673,1745406697763,-200.0,0.00035,120]
[358740674,1745406697773,-5000.31644835,0.00035,2]
[358740675,1745406697783,-390784.80400944,0.00035,30]
[358740676,1745406698145,-462.14600001,0.00019904,2]
[358740677,1745406698158,-37.85399999,0.00019904,2]
[358740678,1745406698171,-500.0,0.00019905,2]
[358740679,1745406698183,-500.0,0.00019906,2]
[358740680,1745406698193,-500.0,0.00019906,2]
[358740681,1745406698203,-11.97167221,0.00019906,2]
[358740682,1745406698215,-297.0,0.00019906,2]
[358740683,1745406698257,-191.02832779,0.00019906,2]
[358740684,1745406698266,-500.0,0.00020178,2]
[358740685,1745406698276,-500.0,0.00020179,2]
[358740686,1745406698287,-506.68409071,0.0002018,2]
[358740687,1745406698296,-500.0,0.0002018,2]
[358740688,1745406698306,-500.0,0.0002018,2]
[358740689,1745406698316,-500.0,0.00020453,2]
[358740690,1745406698326,-500.0,0.00020727,2]
[358740691,1745406698337,-320.15382528,0.00021001,2]
[358740692,1745406732726,-153.97776506,0.00019902,2]
[358740693,1745406737931,-146.02223494,0.00019902,2]
[358740694,1745406737955,-153.97776506,0.00019903,2]
[358740695,1745406741956,-187.57899624,0.00019903,2]
[358740696,1745406751533,-151.0,0.00019903,2]
[358740698,1745406759333,-7.4432387,0.00019903,2]
[358740699,1745406759355,-199.9567613,0.00019903,2]
[358740700,1745406763847,-300.0432387,0.00019903,2]
[358740701,1745406763869,-19.9567613,0.00019903,2]
[358740751,1745406901929,-160.0,0.00019899,2]
[358740752,1745406902459,-80.18116825,0.00019903,2]
[358740754,1745406939629,-216.11316556,0.00019806,2]
[358740755,1745406945918,-170.22687027,0.00019806,2]
[358740757,1745406956223,-103.84612418,0.00019806,2]
[358740758,1745406956248,-48.36587582,0.00019902,2]
[358740759,1745406960941,-251.63412418,0.00019902,2]
[358740760,1745406960965,-233.36300747,0.00019902,2]
[358740761,1745406966511,-161.72406918,0.00019901,2]
[358740764,1745407006916,1660.0,0.00018,30]
[358740765,1745407021936,-70.63699253,0.00019902,2]
[358740766,1745407021961,-91.08707665,0.00019902,2]
[358740767,1745407046465,-204.26631501,0.00019901,2]
[358740768,1745407058580,-95.73368499,0.00019901,2]
[358740769,1745407058603,-248.73094937,0.00019901,2]
[358740770,1745407060908,-248.73094937,0.00019901,2]
[358740771,1745407084483,-2.53810126,0.00019901,2]
[358740772,1745407084517,-297.46189874,0.00019901,2]
[358740773,1745407125295,-536.3448971,0.00019802,2]
[358740775,1745407278442,-392.14892804,0.00019803,2]
[358740778,1745407317307,-469.30178498,0.00019801,2]
[358740780,1745407508053,-410.63906184,0.00019801,2]
[358740788,1745407618697,-242.78410404,0.00019802,2]
[358740818,1745407700800,-152.0,0.000198,2]
[358740825,1745407724588,-152.0,0.000198,2]
[358740830,1745407729885,479.68206278,0.0001516,7]
[358740831,1745407732341,-199.71021879,0.00019702,2]
[358740832,1745407744914,-199.71021879,0.00019702,2]